bitfinex/quotes_BTCUSD_20250123
["timestamp","ask_amount","ask_price","bid_price","bid_amount"]
[1737656063927,0.09497038,105400.0,105390.0,0.11082021]
[1737656064132,0.09697038,105400.0,105390.0,0.11082021]
[1737656064892,0.09497038,105400.0,105390.0,0.11082021]
[1737656065090,0.09997038,105400.0,105390.0,0.11082021]
[1737656065934,0.00509438,105400.0,105390.0,0.094885]
[1737656066560,0.00509438,105400.0,105390.0,0.0950276]
[1737656067012,0.00509438,105400.0,105390.0,0.19237489]
[1737656068781,0.00509438,105400.0,105390.0,0.0950276]
[1737656069385,0.09997038,105400.0,105390.0,0.0001426]
[1737656069818,0.09997038,105400.0,105390.0,0.0950276]
[1737656072745,0.00509438,105400.0,105390.0,0.16910356]
[1737656073332,0.00509438,105400.0,105390.0,0.0950276]
[1737656073547,0.25551903,105400.0,105390.0,0.0001426]
[1737656073761,0.09997038,105400.0,105390.0,0.0001426]
[1737656073965,0.25551903,105400.0,105390.0,0.0001426]
[1737656074397,0.37586632,105400.0,105390.0,0.0001426]
[1737656074585,0.09997038,105400.0,105390.0,0.0001426]
[1737656075875,0.25551903,105400.0,105390.0,0.0001426]
[1737656077183,0.094894,105380.0,105370.0,0.0001425]
[1737656077427,0.337903,105370.0,105360.0,0.01949177]
[1737656077670,0.117921,105350.0,105340.0,0.0001425]
[1737656077946,0.37081694,105350.0,105340.0,0.0001425]
[1737656078426,0.25046965,105350.0,105340.0,0.0001425]
[1737656078662,0.094921,105350.0,105340.0,0.0001425]
[1737656078884,0.099921,105350.0,105340.0,0.0950725]
[1737656079094,0.10007015,105350.0,105340.0,0.0950725]
[1737656079493,0.40031758,105350.0,105340.0,0.0001425]
[1737656079750,0.49766487,105350.0,105340.0,0.0001425]
[1737656079943,0.27997029,105350.0,105340.0,0.0001425]
[1737656080522,0.2556188,105350.0,105340.0,0.0001425]
[1737656080991,0.42271758,105350.0,105340.0,0.0001425]
[1737656082260,0.58836596,105350.0,105340.0,0.0001425]
[1737656082437,0.68836596,105350.0,105340.0,0.0001425]
[1737656082635,0.78571325,105350.0,105340.0,0.0001425]
[1737656083232,0.78671325,105350.0,105340.0,0.0001425]
[1737656083437,0.80171325,105350.0,105340.0,0.0001425]
[1737656083641,0.78971325,105350.0,105340.0,0.0001425]
[1737656083893,0.11793,105340.0,105330.0,0.0001425]
[1737656084034,0.56167971,105340.0,105330.0,0.0001425]
[1737656084399,0.60947971,105340.0,105330.0,0.0001425]
[1737656084569,0.05,105330.0,105320.0,0.0001425]
[1737656084781,0.70627227,105330.0,105320.0,0.0001425]
[1737656085965,0.094984,105280.0,105270.0,0.0001426]
[1737656086161,0.63197359,105280.0,105270.0,0.0001426]
[1737656086364,0.54642494,105280.0,105270.0,0.0001426]
[1737656086584,0.63197359,105280.0,105270.0,0.0001426]
[1737656086928,0.78197359,105280.0,105270.0,0.0001426]
[1737656087133,0.90232088,105280.0,105270.0,0.0001426]
[1737656087485,0.94936986,105280.0,105270.0,0.0001426]
[1737656087685,0.19742,105240.0,105230.0,0.09654512]
[1737656087927,0.7040853,105240.0,105230.0,0.08482069]
[1737656088126,0.88025831,105240.0,105230.0,0.08482069]
[1737656088329,0.4246853,105240.0,105230.0,0.08482069]
[1737656088741,0.3485403,105240.0,105230.0,0.08482069]
[1737656088944,0.3486892,105240.0,105230.0,0.08482069]
[1737656089166,0.3536892,105240.0,105230.0,0.08482069]
[1737656089508,0.41221627,105240.0,105230.0,0.08482069]
[1737656090142,0.31719627,105240.0,105230.0,0.17984969]
[1737656090378,0.31719627,105240.0,105230.0,0.23584856]
[1737656090661,0.31719627,105240.0,105230.0,0.17984969]
[1737656090871,0.31219627,105240.0,105230.0,0.17984969]
[1737656091070,0.21484898,105240.0,105230.0,0.17984969]
[1737656091298,0.04061572,105240.0,105230.0,0.17984969]
[1737656091482,0.03561572,105240.0,105230.0,0.17984969]
[1737656091825,0.04061572,105240.0,105230.0,0.17984969]
[1737656092040,0.04061572,105240.0,105230.0,0.25485516]
[1737656092243,0.0051489,105240.0,105230.0,0.17984969]
[1737656092449,0.0051489,105240.0,105230.0,0.27719698]
[1737656092646,0.0051489,105240.0,105230.0,0.61919698]
[1737656092647,9e-07,105240.0,105230.0,0.61919698]
[1737656092815,0.00029989,105280.0,105270.0,0.172893]
[1737656093058,0.00044934,105280.0,105270.0,0.172893]
[1737656093570,0.00044934,105280.0,105270.0,0.2471797]
[1737656094226,0.00244934,105280.0,105270.0,0.172893]
[1737656094797,0.15862235,105280.0,105260.0,0.37998]
[1737656095005,0.44594964,105280.0,105270.0,0.00622025]
[1737656095200,0.38476663,105280.0,105270.0,0.00622025]
[1737656095436,0.189995,105270.0,105240.0,0.269836]
[1737656095648,0.78010976,105270.0,105250.0,0.095009]
[1737656095913,0.62393675,105270.0,105250.0,0.28929885]
[1737656096441,0.43393875,105270.0,105250.0,0.28929885]
[1737656096648,0.3485223,105260.0,105250.0,0.00426685]
[1737656097044,0.5385333,105260.0,105240.0,0.28506]
[1737656097273,0.61854578,105260.0,105250.0,0.00427694]
[1737656097470,0.46237277,105260.0,105250.0,0.00427694]
[1737656097849,0.49950434,105260.0,105250.0,0.00427694]
[1737656098266,0.41549186,105260.0,105250.0,0.00427694]
[1737656098454,0.41949186,105260.0,105250.0,0.00427694]
[1737656098597,0.10134729,105260.0,105250.0,0.09928794]
[1737656099245,0.19634929,105260.0,105250.0,0.09928794]
[1737656099381,0.10134729,105260.0,105250.0,0.09928794]
[1737656099602,0.004,105260.0,105250.0,0.09928794]
[1737656099808,0.01336753,105260.0,105250.0,0.09928794]
[1737656100418,0.004,105260.0,105250.0,0.17628794]
[1737656100795,0.28541634,105280.0,105260.0,0.189993]
[1737656101087,0.1046994,105280.0,105270.0,0.094993]
[1737656101291,0.1046994,105280.0,105270.0,0.09926223]
[1737656101621,0.26950583,105280.0,105270.0,0.00426923]
[1737656101876,0.095012,105250.0,105240.0,0.095018]
[1737656102042,0.475029,105260.0,105240.0,0.285047]
[1737656102252,0.76239429,105260.0,105240.0,0.285047]
[1737656102448,0.095011,105250.0,105240.0,0.285047]
[1737656102673,0.19235829,105250.0,105230.0,0.3802396]
[1737656102909,0.38238429,105250.0,105240.0,0.09502]
[1737656103037,0.379987,105270.0,105250.0,0.095011]
[1737656103235,0.38233529,105270.0,105260.0,0.095002]
[1737656103439,0.094999,105270.0,105260.0,0.095002]
[1737656104248,0.001,105270.0,105260.0,0.285003]
[1737656104796,0.0097154,105280.0,105270.0,0.094993]
[1737656104945,0.00044934,105280.0,105270.0,0.094993]
[1737656105963,0.09643334,105280.0,105270.0,0.094993]
[1737656106383,0.19378063,105280.0,105270.0,0.094993]
[1737656107197,0.285017,105260.0,105240.0,0.19098759]
[1737656107395,0.5035347,105260.0,105240.0,0.28600259]
[1737656107597,0.095011,105250.0,105230.0,0.38120019]
[1737656107795,0.09502,105240.0,105230.0,0.09613019]
[1737656108089,0.57243729,105250.0,105230.0,0.09613019]
[1737656108295,0.09734729,105250.0,105230.0,0.38119519]
[1737656108487,0.285018,105260.0,105240.0,0.285057]
[1737656108674,0.57238629,105260.0,105240.0,0.477089]
[1737656108882,0.22617301,105270.0,105240.0,0.477089]
[1737656108883,0.284996,105270.0,105250.0,0.095011]
[1737656109074,0.57234029,105270.0,105250.0,0.28551975]
[1737656109227,0.09734729,105270.0,105260.0,0.095002]
[1737656109434,0.094993,105270.0,105260.0,0.285004]
[1737656109821,0.7264249,105280.0,105260.0,0.285004]
[1737656110022,0.68522443,105280.0,105260.0,0.285004]
[1737656110224,0.004,105270.0,105260.0,0.285004]
[1737656110915,0.16017301,105270.0,105260.0,0.095002]
[1737656111128,0.095002,105260.0,105250.0,0.09650875]
[1737656111372,0.53617301,105270.0,105250.0,0.09650875]
[1737656111592,0.35614227,105280.0,105260.0,0.10674565]
[1737656111795,0.58228555,105280.0,105260.0,0.29674465]
[1737656111996,0.64346656,105280.0,105260.0,0.29674465]
[1737656112226,0.73845556,105280.0,105260.0,0.48674065]
[1737656112430,0.74245556,105280.0,105260.0,0.48673565]
[1737656112632,0.74245556,105280.0,105270.0,0.094993]
[1737656112633,0.00429989,105280.0,105270.0,0.094993]
[1737656113010,0.00029989,105280.0,105270.0,0.094993]
[1737656113195,0.00029989,105280.0,105270.0,0.16266526]
[1737656113544,0.00129989,105280.0,105270.0,0.094993]
[1737656113751,0.5323279,105300.0,105270.0,0.379951]
[1737656113979,0.29060465,105300.0,105290.0,0.094975]
[1737656114176,0.10439276,105300.0,105290.0,0.094975]
[1737656114376,0.90396776,105310.0,105290.0,0.284926]
[1737656114534,0.094966,105300.0,105290.0,0.094975]
[1737656114744,0.96517677,105310.0,105290.0,0.094975]
[1737656114948,1.06014077,105310.0,105290.0,0.3134152]
[1737656115271,0.094966,105300.0,105290.0,0.3134152]
[1737656115672,0.42426129,105310.0,105290.0,0.42014948]
[1737656115875,0.32426129,105310.0,105300.0,0.094966]
[1737656116075,0.13433829,105310.0,105300.0,0.16382009]
[1737656116283,0.094952,105320.0,105300.0,0.25877509]
[1737656116481,0.284832,105330.0,105310.0,0.189901]
[1737656116685,0.08989,105330.0,105320.0,0.094948]
[1737656116885,0.279778,105330.0,105320.0,0.094948]
[1737656117130,0.27472,105330.0,105320.0,0.094948]
[1737656117336,0.189864,105340.0,105320.0,0.189888]
[1737656117507,0.284798,105340.0,105320.0,0.3113718]
[1737656117848,0.009,105330.0,105320.0,0.3113718]
[1737656118077,0.001,105330.0,105320.0,0.3113718]
[1737656118274,0.54145544,105340.0,105320.0,0.284833]
[1737656118482,0.094939,105330.0,105320.0,0.094945]
[1737656118698,0.59552344,105340.0,105320.0,0.284841]
[1737656118699,0.64046044,105340.0,105320.0,0.284841]
[1737656118913,0.64045644,105340.0,105320.0,0.284841]
[1737656119097,0.45058344,105340.0,105320.0,0.5487517]
[1737656119242,0.007,105330.0,105320.0,0.3588557]
[1737656119446,0.45057344,105340.0,105320.0,0.3588557]
[1737656119638,0.00960143,105340.0,105330.0,0.094939]
[1737656119843,0.004,105340.0,105330.0,0.094939]
[1737656120091,0.004,105340.0,105320.0,0.74104299]
[1737656120092,0.4433833,105340.0,105320.0,0.094943]
[1737656120291,0.25111301,105330.0,105310.0,0.550251]
[1737656120492,0.44099301,105330.0,105310.0,0.550265]
[1737656120649,0.25111301,105330.0,105310.0,0.550265]
[1737656120995,0.15617301,105320.0,105310.0,0.284853]
[1737656121201,0.7322363,105330.0,105310.0,0.33706008]
[1737656121412,0.098939,105330.0,105320.0,0.094948]
[1737656121623,0.098939,105330.0,105310.0,0.52795608]
[1737656121824,0.25511701,105330.0,105310.0,0.095953]
[1737656122021,0.44500801,105330.0,105310.0,0.285863]
[1737656122335,0.63090001,105330.0,105310.0,0.16157317]
[1737656122571,0.45052228,105330.0,105310.0,0.35247817]
[1737656122739,0.00951327,105330.0,105320.0,0.094948]
[1737656123148,0.25111401,105330.0,105310.0,0.35247017]
[1737656123318,0.094941,105330.0,105320.0,0.094948]
[1737656123682,0.74079641,105350.0,105310.0,0.001]
[1737656123854,0.00926042,105340.0,105330.0,0.284814]
[1737656124092,0.55093941,105350.0,105330.0,0.284805]
[1737656124296,0.74078341,105350.0,105330.0,0.284805]
[1737656124478,0.55093041,105350.0,105330.0,0.5411404]
[1737656124710,0.3484553,105340.0,105320.0,0.28484]
[1737656124919,0.284798,105340.0,105320.0,0.474727]
[1737656125094,0.44097101,105340.0,105320.0,0.474727]
[1737656125293,0.15617301,105340.0,105320.0,0.569667]
[1737656125513,0.45793041,105350.0,105330.0,0.284806]
[1737656125726,0.02570956,105350.0,105340.0,0.09493]
[1737656125956,0.05,105370.0,105340.0,0.09493]
[1737656126154,0.4433553,105360.0,105340.0,0.09493]
[1737656126371,0.094921,105350.0,105340.0,0.09493]
[1737656126766,0.34093701,105350.0,105330.0,0.53187273]
[1737656126976,0.63094243,105350.0,105330.0,0.36482607]
[1737656127186,0.28491642,105350.0,105330.0,0.55469507]
[1737656127478,0.27980942,105360.0,105340.0,0.284777]
[1737656127706,0.27980942,105360.0,105340.0,0.47512775]
[1737656127845,0.15617301,105380.0,105360.0,0.189812]
[1737656128044,0.6309219,105390.0,105370.0,0.094901]
[1737656128254,0.6330813,105390.0,105370.0,0.094901]
[1737656128457,0.094903,105370.0,105360.0,0.01732122]
[1737656128754,0.44087101,105380.0,105360.0,0.11222722]
[1737656128961,0.54723418,105390.0,105370.0,0.094903]
[1737656129162,0.44084301,105390.0,105370.0,0.12520632]
[1737656129363,0.55011146,105400.0,105370.0,0.50481532]
[1737656129568,0.44083301,105390.0,105370.0,0.50480832]
[1737656129765,0.15617301,105380.0,105370.0,0.03030332]
[1737656130113,0.3035203,105380.0,105340.0,0.19035875]
[1737656130361,0.15617301,105380.0,105370.0,0.284701]
[1737656130607,0.002,105390.0,105370.0,0.189801]
[1737656130840,0.36964812,105400.0,105380.0,0.094893]
[1737656130841,0.184644,105400.0,105380.0,0.094893]
[1737656131102,0.52877348,105410.0,105390.0,0.284653]
[1737656131349,0.63561021,105410.0,105390.0,0.3320959]
[1737656131608,0.3983963,105400.0,105390.0,0.0474429]
[1737656131872,0.8279393,105400.0,105370.0,0.284707]
[1737656132136,0.28467,105390.0,105370.0,0.284707]
[1737656132401,0.64342672,105400.0,105370.0,0.189806]
[1737656132674,0.00014942,105400.0,105390.0,0.094885]
[1737656133203,0.00014942,105400.0,105390.0,0.095885]
[1737656133462,0.00014942,105400.0,105390.0,0.17114133]
[1737656134664,0.09502742,105400.0,105380.0,0.284667]
[1737656135014,0.00014942,105400.0,105390.0,0.094885]
[1737656135195,0.09502642,105400.0,105380.0,0.57178929]
[1737656135361,0.00014942,105400.0,105390.0,0.19223229]
[1737656135555,0.00014942,105400.0,105390.0,0.09734729]
[1737656135811,0.00014942,105400.0,105390.0,0.23992232]
[1737656136246,0.00014942,105400.0,105380.0,0.56933]
[1737656136247,0.09502742,105400.0,105380.0,0.285669]
[1737656136356,0.00014942,105400.0,105380.0,0.47545]
[1737656136572,0.00014942,105400.0,105390.0,0.094885]
[1737656136774,0.00114942,105400.0,105390.0,0.094885]
[1737656136981,0.09602742,105400.0,105380.0,0.28467]
[1737656137184,0.00114942,105400.0,105390.0,0.094885]
[1737656137824,0.00014942,105400.0,105390.0,0.094885]
[1737656138266,0.00014942,105400.0,105390.0,0.19223229]
[1737656139725,0.30320762,105410.0,105390.0,0.19223229]
[1737656139856,0.001,105400.0,105390.0,0.38200229]
[1737656140059,0.001,105400.0,105390.0,0.50780278]
[1737656140479,0.00960552,105410.0,105390.0,0.41291778]
[1737656140682,0.44103647,105430.0,105400.0,0.09734729]
[1737656140901,0.45300082,105430.0,105410.0,0.284593]
[1737656141549,0.45300082,105430.0,105410.0,0.284596]
[1737656141763,0.01226381,105430.0,105420.0,0.094858]
[1737656141963,0.094858,105420.0,105410.0,0.0474468]
[1737656142170,0.094858,105420.0,105390.0,0.360543]
[1737656142171,0.284605,105410.0,105390.0,0.360543]
[1737656142386,0.189732,105420.0,105400.0,0.09734729]
[1737656142588,0.27016054,105430.0,105400.0,0.28708729]
[1737656142797,0.45985954,105430.0,105410.0,0.094866]
[1737656143027,0.45985954,105430.0,105420.0,0.001]
[1737656143240,0.82742826,105430.0,105420.0,0.001]
[1737656143444,0.285589,105420.0,105390.0,0.360545]
[1737656143614,0.44176201,105420.0,105400.0,0.096875]
[1737656143846,0.284588,105420.0,105390.0,0.5503]
[1737656144163,0.284588,105420.0,105410.0,0.001]
[1737656144361,0.25103101,105420.0,105410.0,0.001]
[1737656144938,0.79956954,105430.0,105410.0,0.001]
[1737656145333,0.45368653,105430.0,105420.0,0.001]
[1737656145524,0.60985954,105430.0,105410.0,0.285599]
[1737656145816,0.60985954,105430.0,105410.0,0.3521086]
[1737656145975,0.60985954,105430.0,105410.0,0.3511086]
[1737656146150,0.01913153,105430.0,105420.0,0.094858]
[1737656146528,0.01913153,105430.0,105420.0,0.095858]
[1737656146728,0.17530454,105430.0,105420.0,0.094858]
[1737656147096,0.46586354,105430.0,105410.0,0.095865]
[1737656147309,0.094858,105420.0,105410.0,0.001]
[1737656147511,0.3483783,105420.0,105410.0,0.001]
[1737656148127,0.5483783,105420.0,105410.0,0.001]
[1737656148329,0.284637,105400.0,105380.0,0.284679]
[1737656148488,0.15617301,105400.0,105380.0,0.36186447]
[1737656148676,0.474369,105410.0,105390.0,0.094885]
[1737656148677,0.44079301,105410.0,105390.0,0.094885]
[1737656148878,0.44079301,105410.0,105390.0,0.284655]
[1737656149162,0.25104801,105410.0,105390.0,0.474417]
[1737656149382,0.63052601,105410.0,105390.0,0.094885]
[1737656149637,0.44078301,105410.0,105390.0,0.284656]
[1737656149857,0.44078301,105410.0,105390.0,0.3558614]
[1737656150085,0.15617301,105410.0,105390.0,0.5506234]
[1737656150309,0.094867,105410.0,105390.0,0.5506234]
[1737656150484,0.64259513,105420.0,105400.0,0.094875]
[1737656150661,0.45286713,105420.0,105400.0,0.30576989]
[1737656150823,0.16827613,105420.0,105400.0,0.40063489]
[1737656151032,0.01210312,105420.0,105410.0,0.094867]
[1737656151306,0.15617301,105420.0,105410.0,0.094867]
[1737656151519,0.25103201,105420.0,105400.0,0.30575189]
[1737656151722,0.25104001,105410.0,105400.0,0.02114189]
[1737656152460,0.15617301,105410.0,105400.0,0.11601789]
[1737656152801,0.15617301,105410.0,105400.0,0.11801789]
[1737656153170,0.63048501,105420.0,105400.0,0.11601789]
[1737656153381,0.82021301,105420.0,105400.0,0.02114189]
[1737656153809,0.094867,105410.0,105400.0,0.02114189]
[1737656154011,0.82021401,105420.0,105400.0,0.11601789]
[1737656154275,0.63048601,105420.0,105400.0,0.11601789]
[1737656154491,0.63048601,105420.0,105400.0,0.11701789]
[1737656155053,0.63048601,105420.0,105400.0,0.11601789]
[1737656155284,0.44075801,105420.0,105400.0,0.30676989]
[1737656155479,0.15,105420.0,105410.0,0.284597]
[1737656155682,0.01219802,105430.0,105420.0,0.094858]
[1737656156720,0.10704702,105430.0,105410.0,0.72545669]
[1737656157058,0.01219802,105430.0,105420.0,0.094858]
[1737656157746,0.01219802,105430.0,105420.0,0.095858]
[1737656158086,0.01219802,105430.0,105420.0,0.094858]
[1737656158294,0.01219802,105430.0,105420.0,0.11599989]
[1737656158937,0.01219802,105430.0,105420.0,0.21334718]
[1737656160205,0.00029946,105430.0,105420.0,0.21334718]
[1737656160418,0.00029946,105430.0,105420.0,0.24278729]
[1737656161108,0.00029946,105430.0,105420.0,0.24478729]
[1737656161312,0.00029946,105430.0,105420.0,0.34688729]
[1737656161691,0.00029946,105430.0,105420.0,0.49888729]
[1737656162689,0.00029946,105430.0,105420.0,0.49688729]
[1737656163288,0.00029946,105430.0,105420.0,0.32988729]
[1737656163495,0.00029946,105430.0,105420.0,0.3087454]
[1737656163962,0.00029946,105430.0,105420.0,0.18444729]
[1737656164376,0.00029946,105430.0,105420.0,0.27730529]
[1737656164499,0.00029946,105430.0,105420.0,0.27430529]
[1737656164727,0.00029946,105430.0,105420.0,0.18744729]
[1737656164928,0.09514846,105430.0,105420.0,0.18244729]
[1737656165128,0.09514846,105430.0,105420.0,0.005]
[1737656165431,0.57166876,105430.0,105420.0,0.005]
[1737656165643,0.57166876,105430.0,105420.0,0.003]
[1737656165853,0.094858,105420.0,105410.0,0.0001422]
[1737656166103,0.27403101,105420.0,105410.0,0.0001422]
[1737656166853,0.25103101,105420.0,105410.0,0.0001422]
[1737656167645,0.25103101,105420.0,105410.0,0.0021422]
[1737656167842,0.25103101,105420.0,105410.0,0.0041422]
[1737656168906,0.5683783,105420.0,105410.0,0.0041422]
[1737656169104,0.5183783,105420.0,105410.0,0.0041422]
[1737656169334,0.094894,105380.0,105370.0,0.0001423]
[1737656169483,0.094894,105380.0,105370.0,0.00064005]
[1737656170107,0.40106701,105380.0,105370.0,0.00064005]
[1737656170310,0.244894,105380.0,105370.0,0.00064005]
[1737656171240,0.339799,105380.0,105350.0,0.56504605]
[1737656171438,0.24734729,105370.0,105340.0,0.0811]
[1737656171645,0.094921,105350.0,105330.0,0.36872969]
[1737656171856,0.094921,105350.0,105330.0,0.56101198]
[1737656172079,0.63076701,105360.0,105340.0,0.094929]
[1737656172280,0.094918,105360.0,105340.0,0.38213629]
[1737656172497,0.15,105360.0,105350.0,0.002]
[1737656172876,0.15,105360.0,105350.0,0.096921]
[1737656173286,0.244912,105360.0,105350.0,0.002]
[1737656173671,0.244912,105360.0,105340.0,0.64056379]
[1737656174021,0.244912,105360.0,105340.0,0.63756379]
[1737656174181,0.094904,105370.0,105350.0,0.284754]
[1737656174395,0.284718,105370.0,105350.0,0.284751]
[1737656174591,0.094908,105370.0,105350.0,0.474584]
[1737656175194,0.001,105360.0,105350.0,0.2848933]
[1737656175538,0.4892264,105370.0,105350.0,0.2848933]
[1737656175739,0.4892264,105370.0,105350.0,0.17425366]
[1737656175940,0.094912,105360.0,105350.0,0.0031423]
[1737656176355,0.64540241,105370.0,105350.0,0.0980633]
[1737656176513,0.094912,105360.0,105350.0,0.0980633]
[1737656176710,0.244912,105360.0,105350.0,0.0031423]
[1737656176919,0.244912,105360.0,105350.0,0.0001423]
[1737656177303,0.245912,105360.0,105350.0,0.0001423]
[1737656177536,0.001,105360.0,105350.0,0.0950633]
[1737656177737,0.001,105360.0,105350.0,0.14254043]
[1737656178233,0.001,105360.0,105350.0,0.19241059]
[1737656178434,0.001,105360.0,105350.0,0.27481059]
[1737656180437,0.001,105360.0,105350.0,0.44481059]
[1737656180663,0.001,105360.0,105350.0,0.44930554]
[1737656181293,0.001,105360.0,105350.0,0.42930554]
[1737656181744,0.29969679,105380.0,105360.0,0.474543]
[1737656181962,0.01501079,105380.0,105370.0,0.094903]
[1737656182166,0.01501079,105380.0,105370.0,0.09934203]
[1737656182344,0.10990479,105380.0,105370.0,0.00443903]
[1737656182483,0.10990479,105380.0,105370.0,0.09934203]
[1737656182700,0.01501079,105380.0,105370.0,0.17595546]
[1737656182917,0.01501079,105380.0,105370.0,0.09934203]
[1737656183136,0.01501079,105380.0,105370.0,0.19668932]
[1737656183327,0.00049788,105380.0,105370.0,0.19668932]
[1737656183755,0.00049788,105380.0,105370.0,0.27708932]
[1737656184171,0.00249788,105380.0,105370.0,0.27708932]
[1737656184518,0.09639188,105380.0,105370.0,0.17974203]
[1737656184701,0.09639188,105380.0,105370.0,0.09934203]
[1737656184896,0.09639188,105380.0,105370.0,0.00443903]
[1737656185240,0.28618588,105380.0,105360.0,0.474534]
[1737656185451,0.09639188,105380.0,105370.0,0.09933001]
[1737656185676,0.09639188,105380.0,105370.0,0.15696054]
[1737656185911,0.09639188,105380.0,105370.0,0.06205754]
[1737656186132,0.28619088,105380.0,105360.0,0.28473]
[1737656186342,0.47599188,105380.0,105360.0,0.28473]
[1737656186542,0.66579288,105380.0,105360.0,0.28573]
[1737656186753,0.244903,105370.0,105360.0,0.001]
[1737656186974,0.30583259,105370.0,105360.0,0.001]
[1737656187185,0.39225029,105370.0,105360.0,0.001]
[1737656187399,0.39225029,105370.0,105360.0,0.003]
[1737656187602,0.244912,105360.0,105350.0,0.0001423]
[1737656188442,0.39225929,105360.0,105350.0,0.0001423]
[1737656188659,0.6460323,105360.0,105350.0,0.0001423]
[1737656188813,0.6460323,105360.0,105320.0,0.08406209]
[1737656188814,0.094939,105330.0,105320.0,0.08406209]
[1737656189217,0.379722,105340.0,105320.0,0.08406209]
[1737656189422,0.65161629,105360.0,105320.0,0.18140938]
[1737656189622,0.331649,105360.0,105340.0,0.094928]
[1737656189847,0.709438,105370.0,105340.0,0.18986]
[1737656190011,0.614527,105370.0,105350.0,0.094921]
[1737656190238,0.44004585,105370.0,105360.0,0.094912]
[1737656190443,0.34513685,105370.0,105360.0,0.094912]
[1737656190663,0.01533685,105370.0,105360.0,0.19225929]
[1737656190861,0.00049788,105370.0,105360.0,0.19225929]
[1737656191063,0.00049788,105370.0,105360.0,0.26088585]
[1737656191276,0.00749788,105370.0,105360.0,0.26088585]
[1737656191479,0.01049788,105370.0,105360.0,0.51108585]
[1737656191684,0.01049788,105370.0,105360.0,0.58378585]
[1737656192291,0.00799034,105370.0,105360.0,0.63378585]
[1737656192499,0.00029883,105380.0,105370.0,0.365603]
[1737656192715,0.00029883,105380.0,105370.0,0.49182044]
[1737656193463,0.08461767,105410.0,105400.0,0.244876]
[1737656193592,0.08461767,105410.0,105400.0,0.51112329]
[1737656193809,0.08461767,105410.0,105400.0,0.56112329]
[1737656194004,0.08461767,105410.0,105400.0,0.51112329]
[1737656194209,0.08461767,105410.0,105400.0,0.57974985]
[1737656194674,0.08461767,105410.0,105400.0,0.62974985]
[1737656195735,0.08461767,105410.0,105400.0,0.63674985]
[1737656196146,0.08461767,105410.0,105400.0,0.64074985]
[1737656196301,0.02412274,105410.0,105400.0,0.64074985]
[1737656196509,0.00029946,105430.0,105420.0,0.193758]
[1737656196704,0.00029946,105430.0,105420.0,0.46982602]
[1737656198378,0.00029946,105430.0,105420.0,0.49282602]
[1737656198582,0.00029946,105430.0,105420.0,0.54282602]
[1737656198720,0.00029946,105430.0,105420.0,0.58892602]
[1737656198920,0.00029946,105430.0,105420.0,0.59892602]
[1737656199117,4.6e-07,105430.0,105420.0,0.59892602]
[1737656199364,0.00029925,105440.0,105420.0,0.59892602]
[1737656199365,0.00029925,105440.0,105430.0,0.137849]
[1737656199569,0.00044862,105440.0,105430.0,0.53432285]
[1737656199740,6.2e-07,105440.0,105430.0,0.53432285]
[1737656199948,0.01790407,105460.0,105450.0,0.322931]
[1737656200195,0.00029925,105460.0,105450.0,0.42027829]
[1737656200800,0.00029925,105460.0,105450.0,0.27027829]
[1737656200943,0.00029925,105460.0,105450.0,0.29899902]
[1737656202285,0.00029925,105460.0,105450.0,0.47099902]
[1737656202535,0.00021184,105460.0,105450.0,0.52599902]
[1737656202722,0.00021184,105460.0,105450.0,0.45599902]
[1737656202928,0.00021184,105460.0,105450.0,0.30599902]
[1737656203900,0.00021184,105460.0,105450.0,0.13055173]
[1737656204160,0.09503384,105460.0,105450.0,0.03572073]
[1737656204445,0.09503384,105460.0,105450.0,0.007]
[1737656204865,0.09503384,105460.0,105450.0,0.099831]
[1737656205099,0.00021184,105460.0,105450.0,0.099831]
[1737656205315,0.00021184,105460.0,105450.0,0.096831]
[1737656205485,0.00021184,105460.0,105450.0,0.1823816]
[1737656205688,0.00021184,105460.0,105450.0,0.28272889]
[1737656206022,0.00021184,105460.0,105450.0,0.27772889]
[1737656206148,0.00021184,105460.0,105450.0,0.27972889]
[1737656206402,0.00021184,105460.0,105450.0,0.27772889]
[1737656206781,0.00021184,105460.0,105450.0,0.28472889]
[1737656207122,0.00021184,105460.0,105450.0,0.27972889]
[1737656207358,0.00021184,105460.0,105450.0,0.49492889]
[1737656207582,8.4e-07,105460.0,105450.0,0.54492889]
[1737656208088,8.4e-07,105460.0,105450.0,0.49292889]
[1737656208315,8.4e-07,105460.0,105450.0,0.49492889]
[1737656208426,8.4e-07,105460.0,105450.0,0.54992889]
[1737656208631,8.4e-07,105460.0,105450.0,0.54492889]
[1737656208865,8.4e-07,105460.0,105450.0,0.54292889]
[1737656209056,8.4e-07,105460.0,105450.0,0.54992889]
[1737656209497,0.55149773,105520.0,105500.0,0.284351]
[1737656209696,0.07812351,105520.0,105510.0,0.094777]
[1737656209914,0.05009778,105520.0,105510.0,0.094777]
[1737656210252,0.14486578,105520.0,105510.0,0.094777]
[1737656210663,0.33440678,105520.0,105500.0,0.39091969]
[1737656210866,0.284348,105510.0,105490.0,0.28437]
[1737656211064,0.307348,105510.0,105500.0,0.03909197]
[1737656211286,0.284348,105510.0,105490.0,0.379157]
[1737656211422,0.473912,105510.0,105490.0,0.473945]
[1737656211837,0.473912,105510.0,105490.0,0.663527]
[1737656212054,0.473912,105510.0,105490.0,0.568739]
[1737656212377,0.473912,105510.0,105480.0,0.0818]
[1737656212378,0.307376,105500.0,105480.0,0.2844]
[1737656212574,0.379163,105500.0,105480.0,0.3507626]
[1737656212806,0.30186845,105500.0,105480.0,0.4455626]
[1737656213006,0.30186845,105500.0,105480.0,0.5403616]
[1737656213288,0.30186845,105500.0,105480.0,0.4455626]
[1737656213444,0.30186845,105500.0,105490.0,0.094795]
[1737656213667,0.30186845,105500.0,105490.0,0.12577869]
[1737656214068,0.434373,105500.0,105490.0,0.12577869]
[1737656215087,0.15,105500.0,105490.0,0.12577869]
[1737656215298,0.094782,105510.0,105500.0,0.094786]
[1737656215471,0.16349114,105510.0,105500.0,0.094786]
[1737656215678,0.01349114,105510.0,105500.0,0.14527837]
[1737656215884,0.02852351,105520.0,105510.0,0.094777]
[1737656216223,0.17852351,105520.0,105510.0,0.094777]
[1737656216436,0.27329151,105520.0,105510.0,0.094777]
[1737656216625,0.04599495,105520.0,105510.0,0.094777]
[1737656216842,0.04599495,105520.0,105510.0,0.20799552]
[1737656217661,0.00049778,105520.0,105510.0,0.20799552]
[1737656218399,0.00049778,105520.0,105510.0,0.20651552]
[1737656219101,0.00049778,105520.0,105510.0,0.20851552]
[1737656219448,0.00049778,105520.0,105510.0,0.35851552]
[1737656220056,0.00049778,105520.0,105510.0,0.36351552]